[Event "4th Tata Steel India Rapid Open 2022"]
[Site "Kolkota"]
[Date "2022.11.30"]
[Round "5.4"]
[White "Mamedyarov, Shakhriyar"]
[Black "Maghsoodloo, Parham"]
[Result "1/2-1/2"]
[ECO "C48"]
[WhiteElo "2741"]
[BlackElo "2720"]
[Annotator "TA"]
[PlyCount "54"]
[EventDate "2022.11.29"]
[EventType "tourn"]
[EventCountry "IND"]
[SourceTitle "playchess.com"]
[Source "ChessBase"]
[SourceQuality "1"]
[TimeControl "900+10"]

{[%evp 9,54,13,8,0,8,0,0,5,7,0,0,-12,3,-25,-16,-6,-22,-12,-5,-23,0,0,2,9,17,0,0,0,0,0,0,0,0,0,0,0,0,0,0,0,0,0,0,0,0,0,0]} 1. e4 {[%emt 0:00:00]} e5 {[%emt 0:00:01]} 2. Nf3 {[%emt 0:00:03]} Nc6 {[%emt 0:00:02]} 3. Nc3 {[%emt 0:00:11]} Nf6 {[%emt 0:00:03]} 4. Bb5 {[%emt 0:00:10]} Bd6 {[%emt 0:00:22]} 5. O-O {[%emt 0:00:16]} O-O {[%emt 0:00:04]} 6. h3 {[%emt 0:00:12] C48: Four Knights: 4 Bb5, replies other than 4...Bb4.} h6 {[%emt 0:00:07]} 7. Re1 {[%emt 0:00:50]} Re8 {[%emt 0:00:42]} 8. Bxc6 {[%emt 0:01:29]} dxc6 {[%emt 0:00:00]} 9. d4 {[%emt 0:00:04] [#] And now dxe5 would win.} Nd7 {[%emt 0:00:00] [#]} 10. Be3 $146 {[%emt 0:00:41]} ({Predecessor:} 10. dxe5 Nxe5 11. Bf4 Nxf3+ 12. Qxf3 Qf6 13. e5 Bxe5 14. Qg3 Bxf4 15. Rxe8+ Kh7 16. Qf3 {1-0 (27) Musovic,A (2219)-Mesnyankin,N (2176) Chess.com INT 2020}) 10... b6 {[%emt 0:00:00]} 11. Qd2 {[%emt 0:01:00]} Bb7 {[%emt 0:00:00]} 12. Rad1 {[%emt 0:00:05]} Qf6 {[%emt 0:00:00]} 13. dxe5 {[%emt 0:00:58]} Nxe5 {[%emt 0:00:02]} 14. Nxe5 {[%emt 0:00:03]} Bxe5 {[%emt 0:00:03]} (14... Rxe5 $2 15. f4 Rh5 16. e5 Bxe5 17. fxe5 Rxe5 18. Bd4 Rxe1+ 19. Qxe1 $18) (14... Qxe5 {simplifies} 15. f4 Qe7 16. e5 Bb4) 15. Bd4 {[%emt 0:00:10] The position is equal.} c5 {[%emt 0:02:37]} 16. Bxe5 {[%emt 0:00:05]} Rxe5 {[%emt 0:00:39]} (16... Qxe5 {simplifies} 17. b3 Bc6 18. Nd5 Bxd5 19. exd5 Qb2) 17. Qd7 {[%emt 0:00:18]} (17. f3 {simplifies} Rae8 18. Re3 Qc6 19. Qf2) 17... Re7 {[%emt 0:00:00]} 18. Nd5 {[%emt 0:00:32]} Bxd5 {[%emt 0:00:00]} (18... Rxd7 $2 19. Nxf6+ gxf6 20. Rxd7 $18) (18... Qxf2+ $2 19. Kxf2 Rxd7 {[#]} 20. Nf6+ $1 {[%mdl 512]} gxf6 21. Rxd7 $16) 19. Qxd5 {[%emt 0:00:02]} Rae8 {[%emt 0:00:08]} 20. c3 {[%emt 0:00:11]} Qe6 {[%emt 0:00:37]} 21. Qxe6 {[%emt 0:00:23]} Rxe6 {[%emt 0:00:01]} 22. Rd7 {[%emt 0:00:04]} Rxe4 {[%emt 0:00:03]} 23. Rxe4 {[%emt 0:00:02]} Rxe4 $11 {[%emt 0:00:02] KR-KR} 24. Kf1 {[%emt 0:00:36] Inhibits Re1+.} Kf8 {[%emt 0:00:02]} 25. Rxc7 {[%emt 0:00:08]} Re7 {[%emt 0:00:02]} 26. Rc8+ {[%emt 0:00:02]} Re8 {[%emt 0:00:01]} 27. Rc7 {[%emt 0:00:01]} Re7 {[%emt 0:00:01] An even fight not without its subleties.   Weighted Error Value: White=0.04 (flawless) /Black=0.02 (flawless)} 1/2-1/2

[Event "4th Tata Steel India Rapid Open 2022"]
[Site "Kolkota"]
[Date "2022.11.30"]
[Round "5.5"]
[White "Vidit, Santosh Gujrathi"]
[Black "Nakamura, Hikaru"]
[Result "1/2-1/2"]
[ECO "C54"]
[WhiteElo "2724"]
[BlackElo "2768"]
[Annotator "TA"]
[PlyCount "53"]
[EventDate "2022.11.29"]
[EventType "tourn"]
[EventCountry "IND"]
[SourceTitle "playchess.com"]
[Source "ChessBase"]
[SourceQuality "1"]
[TimeControl "900+10"]

{[%evp 11,53,13,27,17,31,11,25,11,12,22,29,16,13,7,21,0,6,0,0,0,20,10,11,0,0,-6,0,0,0,0,0,0,0,0,0,-13,0,0,0,0,0,0,0,0]} 1. e4 {[%emt 0:00:04]} e5 {[%emt 0:00:07]} 2. Nf3 {[%emt 0:00:06]} Nc6 {[%emt 0:00:01]} 3. Bc4 {[%emt 0:00:03]} Nf6 {[%emt 0:00:02]} 4. d3 {[%emt 0:00:08]} Bc5 {[%emt 0:00:02]} 5. O-O {[%emt 0:00:14]} d6 {[%emt 0:00:01]} 6. c3 {[%emt 0:00:13]} a6 {[%emt 0:00:01]} 7. a4 {[%emt 0:00:08] C54: Giuoco Piano: 4 c3 Nf6, main lines with 5 d4 and 5 d3.} Ba7 {[%emt 0:00:02]} 8. Re1 {[%emt 0:01:21] 8.Re1 scores better than 8.Nbd2.} O-O {[%emt 0:00:09][%cal Ob7b5]} 9. h3 {[%emt 0:00:16] White has an edge.} h6 {[%emt 0:00:01]} 10. Nbd2 {[%emt 0:00:05]} Re8 {[%emt 0:00:01]} (10... Nh5 {feels hotter.} 11. Nf1 Qf6 12. Ne3 Nf4) 11. b4 {[%emt 0:00:19]} Be6 {[%emt 0:00:03] The position is equal.} 12. Bxe6 {[%emt 0:00:19]} Rxe6 {[%emt 0:00:02]} 13. Rb1 {[%emt 0:00:43]} Qd7 {[%emt 0:00:32]} 14. Qc2 {[%emt 0:00:28]} b5 {[%emt 0:00:04]} 15. Ra1 {[%emt 0:00:15]} Rae8 {[%emt 0:00:02] [#]} 16. axb5 $146 {[%emt 0:01:18]} ({Predecessor:} 16. Nf1 d5 17. Bd2 Bb6 18. Ng3 Rd8 19. a5 Ba7 20. Rac1 dxe4 21. dxe4 Rd6 22. Be3 Bxe3 23. Rxe3 {1-0 (57) Ragger,M (2647)-Wagner,D (2584) Terme Catez 2022}) 16... axb5 {[%emt 0:00:02]} 17. Nf1 {[%emt 0:01:08]} d5 {[%emt 0:00:42]} 18. Ng3 {[%emt 0:00:10]} Bb6 {[%emt 0:00:08]} (18... Rd8 {is more complex.} 19. Nf5 dxe4 20. dxe4 Qd3) 19. Nf5 {[%emt 0:00:52]} Ne7 {[%emt 0:03:03]} 20. Nxe7+ {[%emt 0:00:04]} R6xe7 {[%emt 0:00:05]} 21. Be3 {[%emt 0:00:07]} Bxe3 {[%emt 0:00:30]} 22. Rxe3 {[%emt 0:00:02]} Qc6 {[%emt 0:00:17]} 23. Re2 {[%emt 0:01:11]} dxe4 {[%emt 0:01:13]} 24. dxe4 {[%emt 0:00:02]} Nd7 {[%emt 0:00:02][%cal Bf6d7,Bd7b6,Bb6c4][%mdl 32]} 25. Nd2 {[%emt 0:02:07][%cal Bf3d2,Bd2b3,Bb3a5][%mdl 32]} Nb6 {[%emt 0:00:02]} 26. Nb3 {[%emt 0:00:07]} Nc4 {[%emt 0:01:18]} 27. Na5 {[%emt 0:00:10] A balanced but interesting game.   Weighted Error Value: White=0.05 (flawless) /Black=0.04 (flawless)} 1/2-1/2

[Event "4th Tata Steel India Rapid Open 2022"]
[Site "Kolkota"]
[Date "2022.11.30"]
[Round "6.1"]
[White "Erigaisi Arjun"]
[Black "Mamedyarov, Shakhriyar"]
[Result "1-0"]
[ECO "C54"]
[WhiteElo "2718"]
[BlackElo "2741"]
[Annotator "TA"]
[PlyCount "71"]
[EventDate "2022.11.29"]
[EventType "tourn"]
[EventCountry "IND"]
[SourceTitle "playchess.com"]
[Source "ChessBase"]
[SourceQuality "1"]
[TimeControl "900+10"]

{[%evp 11,71,15,20,22,29,14,14,8,9,4,44,30,52,53,52,47,97,102,112,91,98,102,124,74,164,89,89,118,120,66,65,47,62,57,52,50,52,52,66,47,40,0,0,-295,0,0,0,0,90,0,72,73,90,83,146,160,254,265,418,95,29992,29993]} 1. e4 {[%emt 0:00:02]} e5 {[%emt 0:00:03]} 2. Nf3 {[%emt 0:00:02]} Nc6 {[%emt 0:00:01]} 3. Bc4 {[%emt 0:00:02]} Nf6 {[%emt 0:00:08]} 4. d3 {[%emt 0:00:02]} Bc5 {[%emt 0:00:02]} 5. c3 {[%emt 0:00:04]} d6 {[%emt 0:00:11]} 6. O-O {[%emt 0:00:06]} a6 {[%emt 0:00:09]} 7. a4 {[%emt 0:00:55] C54: Giuoco Piano: 4 c3 Nf6, main lines with 5 d4 and 5 d3.} Ba7 {[%emt 0:00:04]} 8. Bg5 {[%emt 0:00:26]} h6 {[%emt 0:00:04]} 9. Bh4 {[%emt 0:00:02] The position is equal.} (9. Be3 {simplifies} Bxe3 10. fxe3 Ne7 11. Nbd2) 9... g5 {[%emt 0:00:22]} 10. Bg3 {[%emt 0:00:02]} Qe7 {[%emt 0:00:43]} 11. Nbd2 {[%emt 0:00:16]} Rg8 {[%emt 0:00:57]} 12. b4 {[%emt 0:01:12][%cal Bb2b4,Bb4b5][%mdl 32] [#]} Bg4 $146 {[%emt 0:02:36]} ({Predecessor:} 12... h5 13. h4 gxh4 14. Bxh4 Bh3 15. g3 Bxf1 16. Nxf1 Rg4 17. N1h2 Rxh4 18. Nxh4 Qd7 {1-0 (43) Demchenko,A (2654)-Navara,D (2697) Chess.com INT 2022}) 13. b5 {[%emt 0:03:28]} Nd8 {[%emt 0:00:10]} (13... Na5 $14) 14. d4 {[%emt 0:00:58][%cal Rd4e5]} a5 {[%emt 0:01:28]} 15. dxe5 {[%emt 0:00:52] White is more active.} dxe5 {[%emt 0:00:03]} 16. Bxe5 {[%emt 0:00:16] Hoping for Bd4.} Ne6 {[%emt 0:00:02]} 17. Bxe6 {[%emt 0:00:39]} (17. h3 $142 Bh5 18. Bxe6 fxe6 19. Bd4) 17... fxe6 {[%emt 0:00:37]} (17... Bxe6 $16 18. Qe2 O-O-O) 18. Bd4 {[%emt 0:00:12]} (18. Nc4 $1 $18) 18... Bxd4 $16 {[%emt 0:00:13]} 19. cxd4 {[%emt 0:00:02]} O-O-O {[%emt 0:00:03]} 20. Qc2 {[%emt 0:01:04]} ({Better is} 20. Nb3 $1 $16) 20... Bxf3 $14 {[%emt 0:00:02]} 21. Nxf3 {[%emt 0:00:03] aiming for Rfd1.} g4 {[%emt 0:00:01]} 22. Nd2 {[%emt 0:00:54]} Rxd4 {[%emt 0:00:03]} 23. Rfc1 {[%emt 0:00:39]} b6 {[%emt 0:05:17]} 24. Nc4 {[%emt 0:01:35]} Qc5 {[%emt 0:00:20]} 25. e5 {[%emt 0:00:09]} Ne4 {[%emt 0:00:24] Threatens to win with ...Kb8.} 26. Qb3 {[%emt 0:01:54][%cal Oc4a5] And now Nxa5! would win.} (26. Nd6+ {simplifies} Kb8 27. Qxe4 Rxe4 28. Rxc5 cxd6 29. Rc6) 26... g3 {[%emt 0:04:35]} 27. hxg3 {[%emt 0:00:04][%mdl 8192] [#]} (27. Nd6+ $1 $11 {and White is okay.} Rxd6 28. Rxc5 gxf2+ 29. Kh1 Nxc5 30. Qf3) 27... Rxc4 $1 {[%emt 0:00:06][%mdl 512]} 28. Qxc4 $11 {[%emt 0:00:41]} Qxf2+ {[%emt 0:00:02]} 29. Kh1 {[%emt 0:00:02][%csl Gc1][%cal Rc4c7]} Nxg3+ {[%emt 0:00:01]} 30. Kh2 {[%emt 0:00:01][%csl Gc1][%cal Rc4c7] Dancing on a razor blade.} Qf7 {[%emt 0:00:01] [#]} (30... Rg7 $1 $11 {keeps the balance.}) 31. Kg1 $1 $40 {[%emt 0:01:17][%mdl 128] White wants a kill.} h5 {[%emt 0:00:23][%cal Oh5h4]} (31... Rf8 $2 32. Ra3 Rg8 33. Rf3 $18) 32. Ra3 {[%emt 0:00:22][%cal Ba1a3,Ba3c3,Bc3c5][%mdl 32] Inhibits h4. Rac3 is the strong threat.} Rg4 {[%emt 0:00:10]} (32... Kb8 $142) 33. Qc2 {[%emt 0:00:32] Strongly threatening Rd3.} Qe7 {[%emt 0:00:40]} (33... c5 $16 {is a better defense.}) 34. Rc3 $18 {[%emt 0:00:13][%cal Rc3c7]} c5 {[%emt 0:00:01]} (34... Rg7 $142 35. Rd1 Kb7) 35. Rd1 $2 {[%emt 0:00:37]} (35. bxc6 $18 Qd8 36. Qf2) 35... Qh4 $2 {[%emt 0:00:13][%mdl 8192] [#]} (35... Nf5 $16) 36. Rxc5+ $1 {[%emt 0:00:15][%mdl 512] Weighted Error Value: White=0.43/Black=0.53} 1-0

[Event "4th Tata Steel India Rapid Open 2022"]
[Site "Kolkota"]
[Date "2022.11.30"]
[Round "6.2"]
[White "Nihal Sarin"]
[Black "So, Wesley"]
[Result "1/2-1/2"]
[ECO "D27"]
[WhiteElo "2670"]
[BlackElo "2760"]
[Annotator "TA"]
[PlyCount "43"]
[EventDate "2022.11.29"]
[EventType "tourn"]
[EventCountry "IND"]
[SourceTitle "playchess.com"]
[Source "ChessBase"]
[SourceQuality "1"]
[TimeControl "900+10"]

{[%evp 16,43,27,22,14,15,17,12,24,17,27,11,17,11,11,7,16,21,19,23,20,21,20,7,21,11,20,13,17,2]} 1. d4 {[%emt 0:00:03]} Nf6 {[%emt 0:00:03]} 2. Nf3 {[%emt 0:00:03]} d5 {[%emt 0:00:06]} 3. c4 {[%emt 0:00:02]} dxc4 {[%emt 0:00:05]} 4. e3 {[%emt 0:00:05]} a6 {[%emt 0:00:02]} 5. Bxc4 {[%emt 0:00:04]} e6 {[%emt 0:00:01]} 6. O-O {[%emt 0:00:08]} c5 {[%emt 0:00:03]} 7. b3 {[%emt 0:00:52]} cxd4 {[%emt 0:00:05]} 8. Nxd4 {[%emt 0:00:03]} Be7 {[%emt 0:00:03]} 9. Bb2 {[%emt 0:00:02]} O-O {[%emt 0:00:02] D27: Queen's Gambit Accepted: Classical main line: 7 e4!? and 7 a4.} 10. Nd2 {[%emt 0:00:02]} b5 {[%emt 0:00:02]} 11. Be2 {[%emt 0:00:02]} Bb7 {[%emt 0:00:02]} 12. Bf3 {[%emt 0:01:39]} Ra7 {[%emt 0:00:35]} 13. Rc1 {[%emt 0:00:23]} Qd7 {[%emt 0:01:02]} 14. Bxb7 {[%emt 0:00:22]} Rxb7 {[%emt 0:00:03]} 15. N2f3 {[%emt 0:01:09] [#]} Rc8 $146 {[%emt 0:01:59] [#]} ({Predecessor:} 15... Rc7 16. Rxc7 Qxc7 17. Qb1 Qb7 18. Rc1 Rc8 19. Ne5 Nfd7 20. Ndf3 Nxe5 21. Nxe5 Nd7 22. Nxd7 Rxc1+ 23. Qxc1 Qxd7 {½-½ (30) Lenderman,A (2637)-Nakamura,H (2746) Saint Louis 2019}) 16. Nf5 $1 {[%emt 0:01:48]} Rxc1 {[%emt 0:00:49]} (16... exf5 $2 17. Qxd7 Nfxd7 18. Rxc8+ Nf8 19. Re1 $18) 17. Nxe7+ {[%emt 0:00:02]} Qxe7 {[%emt 0:00:01]} 18. Qxc1 {[%emt 0:00:01] The position is equal.} Rc7 {[%emt 0:00:18] Prevents Qc8+.} 19. Qd2 {[%emt 0:00:26]} Qd7 {[%emt 0:01:13]} 20. Qe2 {[%emt 0:01:29]} Qc8 {[%emt 0:00:21]} 21. Bxf6 {[%emt 0:02:39] [#] Hoping for Be5.} gxf6 {[%emt 0:00:03]} 22. Rd1 {[%emt 0:00:02] A balanced but interesting game.   Weighted Error Value: White=0.05 (flawless) /Black=0.03 (flawless)} 1/2-1/2

[Event "4th Tata Steel India Rapid Open 2022"]
[Site "Kolkota"]
[Date "2022.11.30"]
[Round "6.3"]
[White "Abdusattorov, Nodirbek"]
[Black "Sethuraman, S.P."]
[Result "1-0"]
[ECO "B22"]
[WhiteElo "2713"]
[BlackElo "2643"]
[Annotator "TA"]
[PlyCount "77"]
[EventDate "2022.11.29"]
[EventType "tourn"]
[EventCountry "IND"]
[SourceTitle "playchess.com"]
[Source "ChessBase"]
[SourceQuality "1"]
[TimeControl "900+10"]

{[%evp 16,77,15,24,38,49,41,41,38,45,40,46,38,38,47,24,62,62,56,64,92,53,58,50,89,89,90,86,130,117,233,35,78,83,75,59,94,100,122,118,226,225,252,231,252,238,303,296,336,329,300,286,291,274,282,281,264,266,300,315,335,292,977,914]} 1. e4 {[%emt 0:00:02]} c5 {[%emt 0:00:01]} 2. Nf3 {[%emt 0:00:02]} e6 {[%emt 0:00:02]} 3. c3 {[%emt 0:00:06][%cal Bc2c3,Bc3d4,Bd4e5][%mdl 32]} Nf6 {[%emt 0:00:12]} 4. e5 {[%emt 0:00:03]} Nd5 {[%emt 0:00:02]} 5. d4 {[%emt 0:00:01]} cxd4 {[%emt 0:00:03]} 6. cxd4 {[%emt 0:00:02]} d6 {[%emt 0:00:02]} 7. Bc4 {[%emt 0:00:04]} Nb6 {[%emt 0:00:09]} 8. Bd3 {[%emt 0:00:02]} Nc6 {[%emt 0:00:12] 8...Nc6 scores better than 8...dxe5.} 9. O-O {[%emt 0:00:03]} dxe5 {[%emt 0:00:04] B22: Sicilian: 2 c3.} 10. dxe5 {[%emt 0:00:03]} Nb4 {[%emt 0:00:09]} 11. Be4 {[%emt 0:00:02]} Qxd1 {[%emt 0:00:39] White is slightly better.} 12. Rxd1 {[%emt 0:00:04]} N4d5 {[%emt 0:00:43]} 13. a4 {[%emt 0:04:28][%cal Ba2a4,Ba4a5][%mdl 32] a5 is the strong threat.} Bd7 {[%emt 0:01:02]} 14. a5 {[%emt 0:00:07]} Na4 {[%emt 0:00:02]} 15. Nd4 {[%emt 0:01:11] [#]} Bb4 $146 {[%emt 0:01:50]} ({Predecessor:} 15... Rc8 16. Bc2 Bc5 17. Rxa4 Bxd4 18. Raxd4 Rxc2 19. Nc3 Bc6 20. R4d2 Nxc3 21. bxc3 Rxd2 22. Bxd2 {½-½ (31) Brandenburg,D (2515)-Van der Wiel,J (2472) Wolvega 2010}) 16. Na3 {[%emt 0:00:52] White is more active.} O-O {[%emt 0:07:49]} 17. Nab5 {[%emt 0:01:31]} Bxb5 {[%emt 0:01:09]} 18. Nxb5 {[%emt 0:00:02]} (18. Bxd5 {simplifies} exd5 19. Nxb5 Nc5 20. Nc7) 18... a6 {[%emt 0:01:40]} 19. Nd4 {[%emt 0:02:23][%cal Bb5d4,Bd4f5,Bf5d6][%mdl 32]} Nc5 {[%emt 0:00:14]} 20. Bxd5 {[%emt 0:00:02]} exd5 {[%emt 0:00:02]} 21. Be3 $36 {[%emt 0:00:13][%mdl 2048] Hoping for Nc2. White is really pushing.} Rac8 {[%emt 0:01:33] [#]} 22. Nf5 $1 {[%emt 0:02:22]} Ne6 {[%emt 0:00:23]} (22... Rc7 $16) 23. Rxd5 $2 {[%emt 0:00:06]} (23. Ra4 $18 Rc4 24. b3 (24. Rxd5 Rfc8 $16)) 23... Rc2 {[%emt 0:00:02]} 24. g3 {[%emt 0:00:54]} Rxb2 {[%emt 0:00:08]} 25. Rc1 {[%emt 0:00:01]} Ra2 {[%emt 0:00:24]} 26. Bb6 {[%emt 0:00:05]} g6 {[%emt 0:00:40]} 27. Nd6 {[%emt 0:00:02]} Ng5 {[%emt 0:00:05]} (27... Rb2 $16 28. Ne4 (28. Nxb7 Bxa5 29. Bxa5 Rxb7 $14) 28... Rb8) 28. Kg2 $18 {[%emt 0:00:14]} ({Resist} 28. Nxb7 $6 Nf3+ 29. Kg2 Ne1+ 30. Kh3 Nf3) 28... Ne6 {[%emt 0:00:16]} 29. Nxb7 {[%emt 0:00:05]} h5 {[%emt 0:00:03]} 30. Nd6 {[%emt 0:00:21]} Kg7 {[%emt 0:00:07]} 31. Rc4 {[%emt 0:00:11]} Be1 {[%emt 0:00:04]} 32. Ne4 {[%emt 0:00:16]} h4 {[%emt 0:00:20]} 33. Kf1 {[%emt 0:00:19]} (33. gxh4 $2 {perishes.} Nf4+ 34. Kf3 Nxd5 $19) 33... Ra1 {[%emt 0:00:03] [#]} 34. Ke2 $1 {[%emt 0:00:01]} (34. gxh4 {is a self mate.} Nf4) 34... hxg3 {[%emt 0:00:12]} 35. hxg3 {[%emt 0:00:01]} Rh8 {[%emt 0:00:22]} 36. Rc6 {[%emt 0:01:25] And now Rd7 would win.} Ra2+ {[%emt 0:00:04]} 37. Kf3 {[%emt 0:00:14]} (37. Kxe1 $2 Rh1#) 37... Bb4 {[%emt 0:00:09]} 38. Rd7 {[%emt 0:00:13] Inhibits g5.} Bxa5 $2 {[%emt 0:00:06]} (38... Re8 39. Kg2 Re7) 39. Rxe6 {[%emt 0:00:05] Weighted Error Value: White=0.15 (very precise) /Black=0.26 (precise)} 1-0

[Event "4th Tata Steel India Rapid Open 2022"]
[Site "Kolkota"]
[Date "2022.11.30"]
[Round "6.4"]
[White "Nakamura, Hikaru"]
[Black "Maghsoodloo, Parham"]
[Result "1-0"]
[ECO "E43"]
[WhiteElo "2768"]
[BlackElo "2720"]
[Annotator "TA"]
[PlyCount "137"]
[EventDate "2022.11.29"]
[EventType "tourn"]
[EventCountry "IND"]
[SourceTitle "playchess.com"]
[Source "ChessBase"]
[SourceQuality "1"]
[TimeControl "900+10"]

{[%evp 16,137,10,10,8,10,0,0,7,-9,30,24,35,31,28,20,28,0,0,0,14,-4,0,0,49,54,84,84,84,59,84,85,84,83,71,41,53,50,76,89,117,70,100,-8,98,97,99,93,111,118,124,111,202,212,315,315,336,310,315,307,310,320,318,332,371,339,332,0,320,310,425,396,489,492,492,493,468,474,504,507,494,473,487,329,510,523,512,482,487,418,555,554,767,755,1176,1176,1114,813,1075,1032,1105,803,882,754,750,743,709,704,910,523,515,485,791,789,760,726,911,907,29986,29987,29991,29992,29992,29993]} 1. d4 {[%emt 0:00:01]} Nf6 {[%emt 0:00:16]} 2. c4 {[%emt 0:00:02]} e6 {[%emt 0:00:02]} 3. Nc3 {[%emt 0:00:01]} Bb4 {[%emt 0:00:01]} 4. e3 {[%emt 0:00:01]} O-O {[%emt 0:00:07]} 5. Bd2 {[%emt 0:00:01]} c5 {[%emt 0:00:12]} 6. Nf3 {[%emt 0:00:24]} b6 {[%emt 0:00:30]} 7. Bd3 {[%emt 0:00:03]} Bb7 {[%emt 0:00:02]} 8. a3 {[%emt 0:00:07]} Bxc3 {[%emt 0:00:03]} 9. Bxc3 {[%emt 0:00:01]} cxd4 {[%emt 0:00:02] E43: Nimzo-Indian: Rubinstein: 4...b6.} 10. exd4 {[%emt 0:00:09]} d5 {[%emt 0:00:12]} 11. b3 {[%emt 0:00:01]} a5 {[%emt 0:00:28] The position is equal.} 12. a4 {[%emt 0:01:38] [#]} Nbd7 $146 {[%emt 0:00:16]} ({Predecessor:} 12... Nc6 13. O-O Nb4 14. Be2 Rc8 15. Bb2 dxc4 16. Bxc4 Nfd5 17. Qd2 Qf6 18. Ne5 Rfd8 {1-0 (41) Vidit,S (2726)-Svane,R (2615) Chess.com INT 2021}) 13. O-O {[%emt 0:00:04]} Rc8 {[%emt 0:00:08]} 14. Bb2 {[%emt 0:00:20]} Qc7 {[%emt 0:00:12]} 15. Re1 {[%emt 0:00:18]} Rfd8 {[%emt 0:00:02]} 16. Rc1 {[%emt 0:00:23] Strongly threatening cxd5.} (16. h3 {with more complications.} Qf4 17. Re3 Nh5 18. Ne5) 16... dxc4 {[%emt 0:00:25]} 17. bxc4 {[%emt 0:00:04]} Qf4 {[%emt 0:00:07][%cal Oe6e5]} 18. Rb1 {[%emt 0:01:51]} (18. Be2 {feels hotter.} Nc5 19. Ne5 Nfe4 20. Rf1) 18... h6 {[%emt 0:03:15][%cal Oe6e5]} (18... e5 {is interesting.} 19. Qd2 Qxd2 20. Nxd2 exd4 21. Bxd4 Nf8) 19. Bc1 {[%emt 0:02:33] Against e5. This pair of bishops is nice.} Qc7 {[%emt 0:00:45]} (19... Qd6 $11 {should be considered.}) 20. h3 $1 $14 {[%emt 0:10:28]} Nb8 {[%emt 0:11:25]} 21. Bb2 {[%emt 0:00:00][%cal Od4d5]} Nbd7 {[%emt 0:00:10] Prevents d5.} 22. Nd2 {[%emt 0:00:20]} Qf4 {[%emt 0:00:10][%cal Od7c5]} 23. Nf1 {[%emt 0:00:10]} Qg5 {[%emt 0:00:00][%csl Gb7][%cal Rg5g2]} 24. Ng3 {[%emt 0:00:10]} Ba6 {[%emt 0:00:20]} 25. Qe2 {[%emt 0:00:10]} Qf4 {[%emt 0:00:10]} 26. Nf1 {[%emt 0:00:10]} Nb8 {[%emt 0:00:10]} 27. Ne3 {[%emt 0:00:10][%cal Od4d5]} Nc6 {[%emt 0:00:00] Against d5} 28. Nc2 {[%emt 0:00:10]} (28. g3 $16 Qg5 29. h4) 28... Qd6 {[%emt 0:00:00]} 29. Bc3 {[%emt 0:00:10] [#]} (29. Red1 $16) 29... Nb4 {[%emt 0:00:30]} (29... Ne5 $1 $11 {keeps the balance.} 30. dxe5 (30. Qxe5 Qxe5 31. dxe5 Rxd3 $11) 30... Qxd3 31. Qxd3 Rxd3) 30. Bxb4 $16 {[%emt 0:00:00] Black is now going downhill.} axb4 {[%emt 0:00:00]} 31. Red1 {[%emt 0:00:20]} Bb7 {[%emt 0:00:20]} 32. Rxb4 {[%emt 0:00:00]} Ra8 {Against a5} 33. Rdb1 $36 {[%emt 0:00:20][%mdl 2048] White is really pushing.} Nd7 {[%emt 0:00:20] [#]} (33... Bc6 $16) 34. c5 $1 $18 {[%emt 0:00:00]} Qc6 {[%emt 0:00:10]} (34... Nxc5 $142 35. Rxb6 (35. dxc5 Qxd3 36. Qxd3 Rxd3 $16) 35... Qd5 36. Rxb7 (36. dxc5 $2 Qxg2#) 36... Nxb7) 35. f3 {[%emt 0:00:00]} (35. cxb6 $2 Qxg2#) 35... Qc8 {[%emt 0:00:00]} 36. cxb6 {[%emt 0:00:00]} Nf6 {[%emt 0:00:00]} 37. Ne3 {[%emt 0:00:00]} Qb8 {[%emt 0:00:00]} 38. Qf2 {[%emt 0:00:00]} Qf4 {[%emt 0:00:40]} 39. Bf1 {[%emt 0:00:00]} ({Don't play} 39. d5 $6 Qd6 40. Be4 Nxd5 $18) 39... Qg5 {[%emt 0:00:00]} 40. Rb5 {[%emt 0:00:00]} Qf4 {[%emt 0:00:00]} 41. R5b4 {[%emt 0:00:00]} Qg5 $1 {[%emt 0:00:00]} 42. h4 {[%emt 0:00:00]} Qg6 {[%emt 0:00:00]} 43. Rc1 {[%emt 0:00:00]} Ne8 {[%emt 0:00:06]} 44. Rc5 {[%emt 0:00:00]} Qf6 {[%emt 0:00:03]} 45. a5 {[%emt 0:00:00]} Qe7 {[%emt 0:00:14]} 46. Nc4 {[%emt 0:00:13][%cal Be3c4,Bc4e5,Be5c6][%mdl 32]} Rd5 {[%emt 0:00:23]} 47. Rb1 {[%emt 0:00:16]} Qd8 {[%emt 0:00:13]} 48. Ra1 {[%emt 0:00:47]} Rxd4 {[%emt 0:00:23]} 49. Ne5 {[%emt 0:00:01] Hoping for Nc6.} Rd1 {[%emt 0:00:01]} (49... Qd6 $142) 50. Nc6 {[%emt 0:00:56]} Qd6 {[%emt 0:00:20]} 51. Rxd1 {[%emt 0:00:04]} Qxd1 {[%emt 0:00:02]} 52. Nb4 {[%emt 0:00:01]} Qa1 {[%emt 0:00:20]} 53. a6 {[%emt 0:00:25]} Bxa6 {[%emt 0:00:04]} 54. Nxa6 {[%emt 0:00:01] aiming for b7.} Rxa6 {[%emt 0:00:01]} 55. Rc8 {[%emt 0:00:01] And now b7 would win.} Qb1 {[%emt 0:00:14]} 56. Rxe8+ {[%emt 0:00:30]} Kh7 {[%emt 0:00:00]} 57. Rb8 {[%emt 0:00:11]} Ra1 {[%emt 0:00:13]} 58. h5 {[%emt 0:00:09] Threatens to win with b7.} Qb5 {[%emt 0:00:17]} 59. Rc8 {[%emt 0:00:14]} Rb1 {[%emt 0:00:11]} 60. Qc2+ {[%emt 0:00:03]} f5 {[%emt 0:00:03]} 61. Qf2 {[%emt 0:00:01]} Ra1 {[%emt 0:00:19]} 62. Rc2 {[%emt 0:00:14] Black must now prevent Re2.} Rb1 {[%emt 0:00:02]} 63. Re2 {[%emt 0:00:04]} e5 {[%emt 0:00:06]} (63... Qxb6 $142 64. Qxb6 Rxb6) 64. b7 {[%emt 0:00:08]} Qxb7 {[%emt 0:00:31]} 65. Rxe5 {[%emt 0:01:01]} Qf7 {[%emt 0:00:04]} 66. Qc2 {[%emt 0:00:00][%csl LRb1,LRf5]} Qa7+ {[%emt 0:00:01]} 67. Kh2 {[%emt 0:00:00] White mates.} Qb8 {[%emt 0:00:11]} 68. Qxf5+ {[%emt 0:00:00]} Kg8 {[%emt 0:00:06]} 69. Bc4+ {[%emt 0:00:00] Weighted Error Value: White=0.23 (precise) /Black=0.31} 1-0